fUST/lending_fUST_20260104
["ID","MTS","AMOUNT","RATE_DAILY","PERIOD"]
[400427717,1767539460030,-500.0,0.00021917,2]
[400427718,1767539460041,-500.0,0.00021917,2]
[400427719,1767539460051,-500.0,0.00021917,2]
[400427720,1767539460061,-575.81370071,0.00021917,2]
[400427721,1767539460071,-500.0,0.00021917,2]
[400427722,1767539460081,-296.76965964,0.00021917,2]
[400427723,1767539460091,-2154.89,0.00021917,2]
[400427724,1767539460100,-323.23257213,0.00021918,7]
[400427725,1767539460111,-500.0,0.00021958,2]
[400427726,1767539460121,-173.69,0.00021973,2]
[400427727,1767539460131,-5000.0,0.00022,2]
[400427728,1767539460141,-1316.46,0.00022,2]
[400427729,1767539460150,-566.16623299,0.00022,14]
[400427730,1767539460160,-25549.59818285,0.00022,2]
[400427731,1767539460551,-1007.557096,0.00010872,2]
[400427732,1767539461039,-51.92305117,0.00010872,2]
[400427733,1767539461562,-1981.85924301,0.0001041,2]
[400427734,1767539461574,-192.11623516,0.0001041,2]
[400427735,1767539461583,-513.19662852,0.00010526,2]
[400427736,1767539461616,-432.99918781,0.00010526,2]
[400427737,1767539461628,-1227.77966184,0.00010526,2]
[400427738,1767539461638,-2173.97547817,0.00010764,2]
[400427739,1767539461648,-7389.75786724,0.00010872,2]
[400427740,1767539461658,-2173.97547817,0.00011035,2]
[400427741,1767539461667,-2173.97547817,0.00011343,2]
[400427742,1767539461677,-276.53041687,0.00013698,2]
[400427743,1767539461687,-1811.906025,0.00013699,2]
[400427744,1767539461696,-303.20312881,0.000189,2]
[400427745,1767539461705,-303.20312881,0.00019089,2]
[400427746,1767539461715,-813.13653,0.00019178,2]
[400427747,1767539461723,-1241.17104,0.00019178,2]
[400427748,1767539461733,-1241.17104,0.00019178,2]
[400427749,1767539461742,-1241.17104,0.00019178,2]
[400427750,1767539461752,-1241.17104,0.00019178,2]
[400427751,1767539461761,-1241.17104,0.00019178,2]
[400427752,1767539461770,-1241.17104,0.00019178,2]
[400427753,1767539461779,-1241.17104,0.00019178,2]
[400427754,1767539461788,-1241.17104,0.00019178,2]
[400427755,1767539461797,-1241.171047,0.00019178,2]
[400427756,1767539461806,-303.20312881,0.00019278,2]
[400427757,1767539461816,-303.20312881,0.00019467,2]
[400427758,1767539461825,-303.20312881,0.00019656,2]
[400427759,1767539461835,-454.80469322,0.00019845,4]
[400427760,1767539461844,-454.80469322,0.00020034,4]
[400427761,1767539461854,-454.80469322,0.00020223,4]
[400427762,1767539461864,-454.80469322,0.00020412,4]
[400427763,1767539461874,-454.80469322,0.00020601,4]
[400427764,1767539461884,-1774.899659,0.000214,2]
[400427765,1767539461894,-1000.0,0.000219,2]
[400427766,1767539461904,-5977.3987722,0.00022,2]
[400427767,1767539463092,-15730.7811387,0.00022,2]
[400427770,1767539500722,165.0,0.00030137,120]
[400427771,1767539505339,160.14,7.434e-05,2]
[400427772,1767539505778,200.17,7.743e-05,2]
[400427773,1767539506187,240.21,8.053e-05,2]
[400427774,1767539506601,280.24,8.363e-05,2]
[400427775,1767539507134,320.28,8.673e-05,2]
[400427776,1767539507608,360.31,8.982e-05,2]
[400427777,1767539508187,400.35,9.292e-05,2]
[400427778,1767539541215,642.08624226,8.867e-05,2]
[400427803,1767539589745,500.0,9.377e-05,2]
[400427804,1767539590126,500.0,9.377e-05,2]
[400427805,1767539590468,610.94963038,9.377e-05,2]
[400427806,1767539593427,197.24544455,9.377e-05,2]
[400427807,1767539593508,500.0,9.377e-05,2]
[400427808,1767539593800,500.0,9.377e-05,2]
[400427809,1767539594079,500.0,9.377e-05,2]
[400427810,1767539594163,562.93107262,9.377e-05,2]
[400427812,1767539606380,500.0,9.377e-05,2]
[400427813,1767539606459,500.0,9.377e-05,2]
[400427814,1767539606545,264.84423245,9.377e-05,2]
[400427815,1767539618773,3136.0,0.00030136,120]
[400427835,1767539730208,404.67212184,9.987e-05,2]
[400427851,1767539813189,155.0,7e-05,2]
[400427988,1767540219098,10000.01,9.934e-05,2]
[400427989,1767540219167,10000.01,9.934e-05,2]
[400427990,1767540219252,10000.01,9.934e-05,2]
[400427991,1767540219318,959.5265853,9.934e-05,2]
[400428056,1767540417452,2678.5728033,9.926e-05,2]
[400428066,1767540492668,187.13836179,0.0001,2]
[400428103,1767540632439,-841.6034007,0.00010759,2]
[400428105,1767540632455,-168.57191137,0.00010759,2]
[400428107,1767540632466,-327.08151282,0.00010759,2]
[400428109,1767540632476,-571.0,0.00010759,2]
[400428111,1767540632486,-186.98575797,0.00010887,2]
[400428113,1767540632496,-152.4295346,0.00010934,2]
[400428114,1767540632505,-4.65636713,0.00010959,2]
[400428116,1767540632517,-600.0,0.00010959,2]
[400428120,1767540632542,-394.34363287,0.00010959,2]
[400428121,1767540632552,-1114.8470871,0.00010959,2]
[400428123,1767540632562,-300.0,0.00010982,2]
[400428125,1767540632572,-500.0,0.00010983,2]
[400428126,1767540632581,-500.0,0.00010983,2]
[400428128,1767540632593,-419.70260069,0.00010983,2]
[400428130,1767540632603,-500.0,0.00010983,2]
[400428132,1767540632614,-500.0,0.00010983,2]
[400428134,1767540632623,-358.71258609,0.00010983,2]
[400428135,1767540632633,-500.0,0.00010983,2]
[400428136,1767540632643,-500.0,0.00010983,2]
[400428137,1767540632652,-500.0,0.00010983,2]
[400428138,1767540632663,-500.0,0.00010983,2]
[400428139,1767540632674,-500.0,0.00010983,2]
[400428140,1767540632686,-500.0,0.00010983,2]
[400428141,1767540632696,-500.0,0.00010983,2]
[400428142,1767540632706,-500.0,0.00010983,2]
[400428143,1767540632717,-500.0,0.00010983,2]
[400428144,1767540632727,-229.21456363,0.00010983,2]
[400428145,1767540632737,-500.0,0.00010983,2]
[400428146,1767540632747,-500.0,0.00010983,2]
[400428147,1767540632759,-500.0,0.00010983,2]
[400428148,1767540632770,-538.02389962,0.00010983,2]
[400428149,1767540632779,-500.0,0.00010983,2]
[400428150,1767540632789,-433.72877714,0.00010983,2]
[400428151,1767540632798,-500.0,0.00010983,2]
[400428152,1767540632808,-500.0,0.00010983,2]
[400428153,1767540632818,-500.0,0.00010983,2]
[400428154,1767540632827,-885.75716753,0.00010983,2]
[400428155,1767540632837,-885.75716753,0.00010983,2]
[400428156,1767540632848,-885.75716753,0.00010983,2]
[400428157,1767540632857,-885.75716753,0.00010983,2]
[400428158,1767540632867,-885.75716753,0.00010983,2]
[400428159,1767540632877,-885.75716753,0.00010983,2]
[400428160,1767540632886,-885.75716753,0.00010983,2]
[400428161,1767540632897,-885.75716753,0.00010983,2]
[400428162,1767540632907,-885.75716753,0.00010983,2]
[400428163,1767540632916,-885.75716753,0.00010983,2]
[400428164,1767540632926,-499.99999999,0.00010983,2]
[400428165,1767540632936,-500.0,0.00010983,2]
[400428166,1767540632946,-1200.0,0.00010983,2]
[400428167,1767540632958,-40157.75030006,0.00010984,2]
[400428188,1767540638645,-2067.52850156,0.00010984,2]
[400428190,1767540638658,-406.0,0.00010984,2]
[400428191,1767540638671,-1132.69608497,0.00010984,2]
[400428192,1767540638688,-6236.02511341,0.00010984,2]
[400428193,1767540638698,-157.801,0.00010987,2]
[400428194,1767540638709,-16876.68280698,0.00010988,2]
[400428195,1767540638729,-68265.97039377,0.00010988,2]
[400428539,1767540646436,-8899.9410328,0.00010988,2]
[400428540,1767540646448,-354.1677791,0.00010988,2]
[400428541,1767540646459,-496.55232866,0.00010988,2]
[400428542,1767540646472,-3080.0,0.00010988,2]
[400428544,1767540646483,-660.112334,0.00010988,2]
[400428546,1767540646562,-1518.91961997,0.00010988,2]
[400428573,1767540734839,-160.67,0.00010665,2]
[400428610,1767540776176,167.26,8.729e-05,2]
[400428611,1767540776712,188.17,9.041e-05,2]
[400428612,1767540777159,209.08,9.353e-05,2]
[400428656,1767540951341,-1237.66743989,0.00010299,2]
[400428660,1767540982085,1142.01686797,0.00027397,120]
[400428671,1767541049684,-385.83520926,0.00010375,2]
[400428672,1767541055426,174131.87550577,0.0003,120]
[400428673,1767541097971,9228.33958148,9.842e-05,2]
[400428674,1767541098048,771.66041852,9.842e-05,2]
[400428704,1767541246749,495.6797629,9.838e-05,2]
[400428751,1767541731410,1527.4690248,9.894e-05,2]
[400428788,1767541832172,-563.21667357,0.000105,2]
[400428789,1767541832403,-567.0,0.000105,2]
[400428790,1767541832414,-209.375,0.00010665,2]
[400428791,1767541832425,-382.35710258,0.00010695,2]
[400428792,1767541832434,-166.66666668,0.00010725,2]
[400428793,1767541832444,-166.66666666,0.00010754,2]
[400428794,1767541832454,-166.66666666,0.00010782,2]
[400428795,1767541832465,-300.0,0.00010876,2]
[400428796,1767541832474,-260.14615185,0.00010876,2]
[400428800,1767541837981,-539.85384815,0.00010876,2]
[400428801,1767541837991,-500.0,0.00010882,2]
[400428802,1767541838001,-251.09881026,0.00010882,2]
[400428803,1767541838011,-500.0,0.00010882,2]
[400428804,1767541838021,-378.83013994,0.00010882,2]
[400428805,1767541838036,-121.16986006,0.00010882,2]
[400428806,1767541838046,-500.0,0.00010882,2]
[400428807,1767541838056,-500.0,0.00010882,2]
[400428808,1767541838066,-500.0,0.00010882,2]
[400428809,1767541838077,-500.0,0.00010882,2]
[400428810,1767541838087,-296.77108774,0.00010882,2]
[400428811,1767541838097,-500.0,0.00010882,2]
[400428812,1767541838108,-214.85875302,0.00010882,2]
[400428813,1767541838118,-500.0,0.00010882,2]
[400428814,1767541838128,-500.0,0.00010882,2]
[400428815,1767541838138,-4000.90870277,0.00010883,2]
[400428816,1767541838150,-995999.09129723,0.00010883,2]
[400428817,1767541838160,-500.0,0.00010959,2]
[400428818,1767541838170,-500.0,0.00010959,2]
[400428819,1767541838180,-500.0,0.00010959,2]
[400428820,1767541838190,-393.79182048,0.00010959,2]
[400428821,1767541838200,-500.0,0.00010959,2]
[400428822,1767541838211,-299.7547642,0.00010986,2]
[400428823,1767541838221,-50000.0,0.00011088,2]
[400428824,1767541838230,-300.0,0.00011088,2]
[400428825,1767541838240,-300.0,0.00011088,2]
[400428826,1767541838250,-300.0,0.00011088,2]
[400428827,1767541838260,-300.0,0.00011088,2]
[400428828,1767541838270,-300.0,0.00011088,2]
[400428829,1767541838280,-300.0,0.00011088,2]
[400428830,1767541838291,-300.0,0.00011088,2]
[400428831,1767541838301,-300.0,0.00011088,2]
[400428832,1767541838311,-300.0,0.00011088,2]
[400428833,1767541838322,-300.0,0.00011088,2]
[400428834,1767541838332,-300.0,0.00011088,2]
[400428835,1767541838342,-300.0,0.00011088,2]
[400428836,1767541838352,-300.0,0.00011088,2]
[400428837,1767541838362,-300.0,0.00011088,2]
[400428838,1767541838372,-300.0,0.00011088,2]
[400428839,1767541838383,-1797.4821521,0.00011213,2]
[400428840,1767541838393,-600.0,0.00011309,2]
[400428841,1767541838403,-2045.86898433,0.00011412,2]
[400428842,1767541838413,-500.0,0.00011649,2]
[400428843,1767541838423,-500.0,0.00011786,2]
[400428844,1767541838433,-151.0,0.000119,2]
[400428845,1767541838443,-500.0,0.00011923,2]
[400428846,1767541838453,-420.0,0.00011953,2]
[400428847,1767541838464,-350.0,0.00012,2]
[400428848,1767541838479,-500.0,0.0001206,2]
[400428849,1767541838489,-151.0,0.000121,2]
[400428850,1767541838499,-189.0,0.00012197,2]
[400428851,1767541838509,-151.0,0.000122,2]
[400428852,1767541838519,-3444.96430421,0.00012304,2]
[400428853,1767541838530,-500.0,0.00012329,2]
[400428854,1767541838540,-500.0,0.00012329,2]
[400428855,1767541838550,-500.0,0.00012329,2]
[400428856,1767541838560,-500.0,0.00012329,2]
[400428857,1767541838570,-500.0,0.00012329,2]
[400428858,1767541838580,-500.0,0.00012329,2]
[400428859,1767541838590,-500.0,0.00012329,2]
[400428860,1767541838600,-500.0,0.00012329,2]
[400428861,1767541838610,-500.0,0.00012329,2]
[400428862,1767541838620,-500.0,0.00012329,2]
[400428863,1767541838630,-500.0,0.00012329,2]
[400428864,1767541838640,-500.0,0.00012329,2]
[400428865,1767541838650,-500.0,0.00012329,2]
[400428866,1767541838660,-500.0,0.00012329,2]
[400428867,1767541838671,-500.0,0.00012329,2]
[400428868,1767541838681,-500.0,0.00012329,2]
[400428869,1767541838691,-500.0,0.00012329,2]
[400428870,1767541838701,-500.0,0.00012329,2]
[400428871,1767541838711,-500.0,0.00012329,2]
[400428872,1767541838722,-500.0,0.00012329,2]
[400428873,1767541838732,-500.0,0.00012329,2]
[400428874,1767541838742,-500.0,0.00012329,2]
[400428875,1767541838753,-500.0,0.00012329,2]
[400428876,1767541838765,-500.0,0.00012329,2]
[400428877,1767541838783,-500.0,0.00012329,2]
[400428878,1767541838793,-500.0,0.00012329,2]
[400428879,1767541838803,-500.0,0.00012329,2]
[400428880,1767541838816,-500.0,0.00012329,2]
[400428881,1767541838826,-500.0,0.00012329,2]
[400428882,1767541838836,-500.0,0.00012329,2]
[400428883,1767541838847,-500.0,0.00012329,2]
[400428884,1767541838857,-500.0,0.00012329,2]
[400428885,1767541838868,-500.0,0.00012329,2]
[400428886,1767541838878,-500.0,0.00012329,2]
[400428887,1767541838888,-500.0,0.00012329,2]
[400428888,1767541838898,-500.0,0.00012329,2]
[400428889,1767541838908,-500.0,0.00012329,2]
[400428890,1767541838918,-500.0,0.00012329,2]
[400428891,1767541838928,-500.0,0.00012329,2]
[400428892,1767541838939,-500.0,0.00012329,2]
[400428893,1767541838948,-500.0,0.00012329,2]
[400428894,1767541838958,-500.0,0.00012329,2]
[400428895,1767541838968,-500.0,0.00012329,2]
[400428896,1767541838979,-500.0,0.00012329,2]
[400428897,1767541838988,-500.0,0.00012329,2]
[400428898,1767541839000,-500.0,0.00012329,2]
[400428899,1767541839010,-576.01078775,0.00012329,2]
[400428900,1767541839021,-500.0,0.00012329,2]
[400428901,1767541839032,-500.0,0.00012329,2]
[400428902,1767541839045,-500.0,0.00012329,2]
[400428903,1767541839056,-500.0,0.00012329,2]
[400428904,1767541839066,-500.0,0.00012329,2]
[400428905,1767541839078,-500.0,0.00012329,2]
[400428906,1767541839088,-151.0,0.000124,2]
[400428907,1767541839099,-720.0,0.0001244,2]
[400428908,1767541839110,-451.18138105,0.00012695,2]
[400428909,1767541839120,-482.12,0.00012725,2]
[400428910,1767541839129,-5575.03146669,0.000129,2]
[400428911,1767541839140,-350.0,0.00012999,2]
[400428912,1767541839151,-7137.10260308,0.00013,2]
[400428913,1767541839160,-587.0,0.00013137,2]
[400428914,1767541839170,-500.0,0.00013273,2]
[400428915,1767541839180,-520.29648728,0.00013273,2]
[400428916,1767541839190,-500.0,0.00013273,2]
[400428917,1767541839200,-500.33450546,0.00013273,2]
[400428918,1767541839210,-500.0,0.00013273,2]
[400428919,1767541839221,-500.0,0.00013273,2]
[400428920,1767541839231,-530.08399995,0.00013273,2]
[400428921,1767541839242,-500.0,0.00013273,2]
[400428922,1767541839251,-500.0,0.00013273,2]
[400428923,1767541839261,-500.0,0.00013273,2]
[400428924,1767541839270,-500.0,0.00013273,2]
[400428925,1767541839279,-500.0,0.00013273,2]
[400428926,1767541839288,-500.0,0.00013273,2]
[400428927,1767541839297,-500.0,0.00013273,2]
[400428928,1767541839307,-500.0,0.00013273,2]
[400428929,1767541839316,-500.0,0.00013273,2]
[400428930,1767541839327,-500.0,0.00013273,2]
[400428931,1767541839336,-500.0,0.00013273,2]
[400428932,1767541839346,-500.0,0.00013273,2]
[400428933,1767541839357,-500.0,0.00013273,2]
[400428934,1767541839367,-500.0,0.00013273,2]
[400428935,1767541839378,-500.0,0.00013273,2]
[400428936,1767541839387,-500.0,0.00013273,2]
[400428937,1767541839397,-500.0,0.00013273,2]
[400428938,1767541839407,-500.0,0.00013273,2]
[400428939,1767541839417,-500.0,0.00013273,2]
[400428940,1767541839427,-500.0,0.00013273,2]
[400428941,1767541839436,-500.0,0.00013273,2]
[400428942,1767541839445,-500.0,0.00013273,2]
[400428943,1767541839455,-500.39596396,0.00013273,2]
[400428944,1767541839464,-500.0,0.00013273,2]
[400428945,1767541839474,-500.0,0.00013273,2]
[400428946,1767541839484,-500.0,0.00013273,2]
[400428947,1767541839508,-500.0,0.00013273,2]
[400428948,1767541839519,-500.0,0.00013273,2]
[400428949,1767541839530,-500.0,0.00013273,2]
[400428950,1767541839541,-500.87675114,0.00013273,2]
[400428951,1767541839554,-494.22531754,0.00013273,2]
[400428952,1767541839567,-500.0,0.00013273,2]
[400428953,1767541839578,-500.0,0.00013273,2]
[400428954,1767541839588,-500.0,0.00013273,2]
[400428955,1767541839599,-500.0,0.00013273,2]
[400428956,1767541839609,-500.66535863,0.00013273,2]
[400428957,1767541839619,-500.0,0.00013273,2]
[400428958,1767541839630,-500.0,0.00013273,2]
[400428959,1767541839640,-500.0,0.00013273,2]
[400428960,1767541839651,-500.0,0.00013273,2]
[400428961,1767541839661,-500.0,0.00013273,2]
[400428962,1767541839671,-500.45877033,0.00013273,2]
[400428963,1767541839682,-500.0,0.00013273,2]
[400428964,1767541839692,-159.29284371,0.00013273,2]
[400428965,1767541839702,-500.32554023,0.00013273,2]
[400428966,1767541839713,-500.0,0.00013273,2]
[400428967,1767541839723,-500.0,0.00013273,2]
[400428974,1767541839967,-205.55096652,0.00013273,2]
[400428976,1767541839980,-500.0,0.00013273,2]
[400428978,1767541839991,-500.78161845,0.00013273,2]
[400428980,1767541840002,-250.42936338,0.000133,2]
[400428983,1767541840012,-1041.66666667,0.00013362,2]
[400428984,1767541840022,-10000.0,0.0001354,2]
[400428987,1767541840034,-300.0,0.00013673,2]
[400428989,1767541840047,-864.0,0.00013684,2]
[400428990,1767541840056,-500.0,0.00013698,2]
[400428992,1767541840066,-500.0,0.00013698,2]
[400428994,1767541840078,-241.78088945,0.00013698,2]
[400428996,1767541840089,-463.44106234,0.00013698,2]
[400428998,1767541840099,-500.0,0.00013698,2]
[400429000,1767541840109,-500.0,0.00013698,2]
[400429002,1767541840119,-500.0,0.00013698,2]
[400429004,1767541840128,-500.0,0.00013698,2]
[400429006,1767541840137,-500.0,0.00013698,2]
[400429008,1767541840146,-500.0,0.00013698,2]
[400429010,1767541840156,-500.0,0.00013698,2]
[400429012,1767541840165,-500.0,0.00013698,2]
[400429014,1767541840175,-500.0,0.00013698,2]
[400429016,1767541840185,-500.0,0.00013698,2]
[400429018,1767541840194,-500.0,0.00013698,2]
[400429020,1767541840203,-500.0,0.00013698,2]
[400429022,1767541840212,-500.0,0.00013698,2]
[400429024,1767541840221,-500.0,0.00013698,2]
[400429026,1767541840231,-500.0,0.00013698,2]
[400429028,1767541840240,-500.0,0.00013698,2]
[400429030,1767541840249,-500.0,0.00013698,2]
[400429032,1767541840259,-500.0,0.00013698,2]
[400429034,1767541840268,-500.0,0.00013698,2]
[400429035,1767541840277,-252.42483345,0.00013698,2]
[400429038,1767541840287,-500.0,0.00013698,2]
[400429039,1767541840296,-500.0,0.00013698,2]
[400429041,1767541840305,-500.0,0.00013698,2]
[400429043,1767541840315,-500.0,0.00013698,2]
[400429045,1767541840325,-525.39041096,0.00013698,2]
[400429047,1767541840334,-1000.0,0.00013698,2]
[400429049,1767541840344,-1000.0,0.00013698,2]
[400429051,1767541840354,-1000.0,0.00013698,2]
[400429053,1767541840367,-1000.0,0.00013698,2]
[400429055,1767541840376,-1000.0,0.00013698,2]
[400429057,1767541840386,-1000.0,0.00013698,2]
[400429059,1767541840395,-1000.0,0.00013698,2]
[400429061,1767541840405,-1013.52750033,0.00013698,2]
[400429063,1767541840414,-513.04283332,0.00013698,2]
[400429065,1767541840424,-466.89772029,0.00013698,2]
[400429068,1767541840434,-500.0,0.00013698,2]
[400429070,1767541840448,-500.0,0.00013698,2]
[400429071,1767541840459,-500.0,0.00013698,2]
[400429073,1767541840469,-500.0,0.00013698,2]
[400429074,1767541840478,-500.0,0.00013698,2]
[400429076,1767541840488,-277.25170511,0.00013698,2]
[400429078,1767541840500,-24287.6279156,0.00013699,2]
[400429080,1767541840509,-1000.0,0.00013699,2]
[400429082,1767541840519,-504.37236451,0.00013699,2]
[400429084,1767541840528,-500.0,0.00013699,2]
[400429086,1767541840538,-501.07709958,0.00013699,2]
[400429088,1767541840549,-501.04423764,0.00013699,2]
[400429090,1767541840559,-500.0,0.00013699,2]
[400429092,1767541840569,-500.92020919,0.00013699,2]
[400429094,1767541840579,-501.56829016,0.00013699,2]
[400429096,1767541840590,-500.86295152,0.00013699,2]
[400429098,1767541840600,-565.84046336,0.00013699,2]
[400429100,1767541840610,-500.65442518,0.00013699,2]
[400429102,1767541840620,-500.76727011,0.00013699,2]
[400429104,1767541840630,-500.71714379,0.00013699,2]
[400429106,1767541840640,-500.85765138,0.00013699,2]
[400429108,1767541840649,-500.0,0.00013699,2]
[400429110,1767541840660,-500.65045485,0.00013699,2]
[400429112,1767541840671,-500.0,0.00013699,2]
[400429114,1767541840681,-501.23587401,0.00013699,2]
[400429116,1767541840690,-500.60483179,0.00013699,2]
[400429118,1767541840700,-500.0,0.00013699,2]
[400429120,1767541840710,-501.64231058,0.00013699,2]
[400429122,1767541840721,-501.13869568,0.00013699,2]
[400429124,1767541840730,-500.68695717,0.00013699,2]
[400429126,1767541840740,-501.57510488,0.00013699,2]
[400429128,1767541840751,-500.6911085,0.00013699,2]
[400429130,1767541840761,-500.68900305,0.00013699,2]
[400429132,1767541840771,-501.19127842,0.00013699,2]
[400429134,1767541840780,-500.54648237,0.00013699,2]
[400429136,1767541840790,-500.59370123,0.00013699,2]
[400429138,1767541840800,-500.86924755,0.00013699,2]
[400429140,1767541840810,-500.7233053,0.00013699,2]
[400429142,1767541840819,-502.04480355,0.00013699,2]
[400429143,1767541840829,-500.70390691,0.00013699,2]
[400429145,1767541840839,-500.74532212,0.00013699,2]
[400429147,1767541840848,-526.06901587,0.00013699,2]
[400429149,1767541840859,-500.0,0.00013699,2]
[400429151,1767541840869,-500.0,0.00013699,2]
[400429153,1767541840879,-500.0,0.00013699,2]
[400429155,1767541840889,-500.93963039,0.00013699,2]
[400429157,1767541840899,-500.63204619,0.00013699,2]
[400429159,1767541840908,-500.61401424,0.00013699,2]
[400429161,1767541840918,-500.0,0.00013699,2]
[400429163,1767541840928,-500.84600982,0.00013699,2]
[400429165,1767541840938,-500.0,0.00013699,2]
[400429167,1767541840948,-500.76143899,0.00013699,2]
[400429169,1767541840960,-501.17135178,0.00013699,2]
[400429171,1767541840969,-500.0,0.00013699,2]
[400429173,1767541840979,-500.0,0.00013699,2]
[400429175,1767541840989,-500.73288358,0.00013699,2]
[400429177,1767541840999,-500.73320513,0.00013699,2]
[400429179,1767541841009,-500.8659362,0.00013699,2]
[400429181,1767541841019,-500.0,0.00013699,2]
[400429183,1767541841030,-254.18853098,0.00013699,2]
[400429185,1767541841043,-500.0,0.00013699,2]
[400429187,1767541841053,-500.0,0.00013699,2]
[400429189,1767541841062,-500.2666594,0.00013699,2]
[400429191,1767541841072,-500.0,0.00013699,2]
[400429193,1767541841083,-500.0,0.00013699,2]
[400429195,1767541841093,-500.0,0.00013699,2]
[400429197,1767541841103,-343.49392703,0.00013699,2]
[400429199,1767541841115,-500.0,0.00013699,2]
[400429201,1767541841126,-500.0,0.00013699,2]
[400429203,1767541841136,-402.00416541,0.00013699,2]
[400429205,1767541841146,-1006.40151695,0.00013821,2]
[400429207,1767541841155,-160.8561298,0.00013821,2]
[400429209,1767541841165,-500.89687559,0.00013821,2]
[400429211,1767541841175,-1000.55162426,0.00013821,2]
[400429213,1767541841185,-1000.0,0.00013821,2]
[400429214,1767541841194,-1000.0,0.00013821,2]
[400429216,1767541841204,-559.85540767,0.00013821,2]
[400429218,1767541841213,-1000.77344969,0.00013821,2]
[400429220,1767541841223,-1000.0,0.00013821,2]
[400429221,1767541841232,-1000.73614236,0.00013821,2]
[400429222,1767541841242,-1000.0,0.00013821,2]
[400429223,1767541841251,-1000.0,0.00013821,2]
[400429224,1767541841261,-1000.0,0.00013821,2]
[400429225,1767541841271,-1000.0,0.00013821,2]
[400429226,1767541841281,-500.0,0.00013821,2]
[400429227,1767541841291,-1006.66491172,0.00013821,2]
[400429228,1767541841301,-500.54385741,0.00013821,2]
[400429229,1767541841311,-1000.0,0.00013821,2]
[400429230,1767541841321,-1001.10079319,0.00013821,2]
[400429231,1767541841331,-1000.0,0.00013821,2]
[400429232,1767541841342,-1000.68502209,0.00013821,2]
[400429233,1767541841351,-1000.0,0.00013821,2]
[400429234,1767541841361,-1000.0,0.00013821,2]
[400429235,1767541841371,-177.31363465,0.00013821,2]
[400429236,1767541841382,-1000.0,0.00013821,2]
[400429237,1767541841392,-500.0,0.00013821,2]
[400429238,1767541841402,-500.26789632,0.00013821,2]
[400429239,1767541841411,-500.0,0.00013821,2]
[400429240,1767541841421,-1000.0,0.00013821,2]
[400429241,1767541841433,-500.0,0.00013821,2]
[400429242,1767541841442,-500.36434968,0.00013821,2]
[400429243,1767541841452,-1000.91624056,0.00013821,2]
[400429244,1767541841462,-500.0,0.00013821,2]
[400429245,1767541841471,-500.0,0.00013821,2]
[400429246,1767541841482,-500.86705355,0.00013821,2]
[400429247,1767541841491,-460.22217308,0.00013821,2]
[400429249,1767541841503,-503.24529155,0.00013821,2]
[400429251,1767541841512,-500.43463828,0.00013821,2]
[400429253,1767541841522,-500.78852788,0.00013821,2]
[400429255,1767541841533,-1062.49024753,0.00013821,2]
[400429257,1767541841543,-500.40232212,0.00013821,2]
[400429259,1767541841553,-902.33846508,0.00013821,2]
[400429261,1767541841563,-500.52724424,0.00013821,2]
[400429263,1767541841574,-500.0,0.00013821,2]
[400429265,1767541841586,-1000.0,0.00013821,2]
[400429267,1767541841597,-600.0,0.00014221,2]
[400429268,1767541841607,-1000.0,0.00014247,2]
[400429269,1767541841618,-1000.0,0.00014247,2]
[400429270,1767541841628,-1000.0,0.00014247,2]
[400429271,1767541841638,-1000.0,0.00014247,2]
[400429272,1767541841649,-1000.0,0.00014247,2]